fUSD/lending_fUSD_20250720
["ID","MTS","AMOUNT","RATE_DAILY","PERIOD"]
[373496291,1753021876832,-480.0,0.00019616,2]
[373496292,1753021876841,-664.91,0.00019616,2]
[373496293,1753021876850,-516.68,0.00019616,2]
[373496294,1753021876859,-480.0,0.00019616,2]
[373496295,1753021876869,-480.0,0.00019616,2]
[373496296,1753021876879,-544.56,0.00019616,2]
[373496297,1753021876889,-480.0,0.00019616,2]
[373496298,1753021876898,-575.06,0.00019616,2]
[373496299,1753021876907,-480.0,0.00019616,2]
[373496300,1753021876917,-480.0,0.00019616,2]
[373496301,1753021876927,-1623.56,0.00019616,2]
[373496302,1753021876937,-480.0,0.00019616,2]
[373496303,1753021876951,-643.57,0.00019616,2]
[373496304,1753021876970,-480.0,0.00019616,2]
[373496305,1753021876980,-480.0,0.00019616,2]
[373496306,1753021876990,-480.0,0.00019616,2]
[373496307,1753021877001,-2083.36,0.00019616,2]
[373496308,1753021877011,-480.0,0.00019616,2]
[373496309,1753021877020,-155.25012,0.00019616,2]
[373496310,1753021877030,-480.0,0.00019616,2]
[373496311,1753021877039,-480.0,0.00019616,2]
[373496312,1753021877049,-480.0,0.00019616,2]
[373496313,1753021877064,-992.12,0.00019616,2]
[373496314,1753021877073,-539.58,0.00019616,2]
[373496315,1753021877083,-480.0,0.00019616,2]
[373496316,1753021877095,-480.0,0.00019616,2]
[373496317,1753021877106,-5247.36,0.00019616,2]
[373496318,1753021877115,-480.0,0.00019616,2]
[373496319,1753021877125,-480.0,0.00019616,2]
[373496320,1753021877136,-521.86,0.00019616,2]
[373496321,1753021877146,-1698.77,0.00019616,2]
[373496322,1753021877156,-480.0,0.00019616,2]
[373496323,1753021877166,-480.0,0.00019616,2]
[373496324,1753021877175,-480.0,0.00019616,2]
[373496325,1753021877184,-1072.72,0.00019616,2]
[373496326,1753021877194,-480.0,0.00019616,2]
[373496327,1753021877203,-1023.83,0.00019616,2]
[373496328,1753021877213,-504.37,0.00019616,2]
[373496329,1753021877223,-480.0,0.00019616,2]
[373496330,1753021877233,-1106.66,0.00019616,2]
[373496331,1753021877242,-1079.33,0.00019616,2]
[373496332,1753021877252,-151.0,0.00019616,2]
[373496333,1753021877262,-4811.88,0.00019616,2]
[373496334,1753021877272,-487.85,0.00019616,2]
[373496335,1753021877281,-480.0,0.00019616,2]
[373496336,1753021877291,-480.0,0.00019616,2]
[373496337,1753021877300,-480.0,0.00019616,2]
[373496338,1753021877309,-1794.47,0.00019616,2]
[373496339,1753021877319,-805.34,0.00019616,2]
[373496340,1753021877328,-480.0,0.00019616,2]
[373496341,1753021877338,-615.6,0.00019616,2]
[373496342,1753021877347,-480.0,0.00019616,2]
[373496343,1753021877357,-272.44,0.00019616,2]
[373496344,1753021877367,-1043.62,0.00019616,2]
[373496345,1753021877377,-480.0,0.00019616,2]
[373496346,1753021877387,-480.0,0.00019616,2]
[373496347,1753021877396,-151.0,0.00019616,2]
[373496348,1753021877406,-480.0,0.00019616,2]
[373496349,1753021877416,-925.32,0.00019616,2]
[373496350,1753021877426,-480.0,0.00019616,2]
[373496351,1753021877436,-480.0,0.00019616,2]
[373496352,1753021877446,-966.34,0.00019616,2]
[373496353,1753021877455,-919.4,0.00019616,2]
[373496354,1753021877466,-480.0,0.00019616,2]
[373496355,1753021877475,-2822.43,0.00019616,2]
[373496356,1753021877485,-720.11,0.00019616,2]
[373496357,1753021877495,-509.23,0.00019616,2]
[373496358,1753021877506,-544.16,0.00019616,2]
[373496359,1753021877515,-781.74,0.00019616,2]
[373496360,1753021877525,-480.0,0.00019616,2]
[373496361,1753021877534,-480.0,0.00019616,2]
[373496362,1753021877544,-480.0,0.00019616,2]
[373496363,1753021877554,-480.0,0.00019616,2]
[373496364,1753021877564,-644.3,0.00019616,2]
[373496365,1753021877573,-480.0,0.00019616,2]
[373496366,1753021877583,-480.0,0.00019616,2]
[373496367,1753021877592,-506.29118667,0.00019616,2]
[373496368,1753021877602,-480.0,0.00019616,2]
[373496369,1753021877611,-480.0,0.00019616,2]
[373496370,1753021877620,-480.0,0.00019616,2]
[373496371,1753021877630,-215.663254,0.00019616,2]
[373496372,1753021877639,-1384.39,0.00019616,2]
[373496373,1753021877648,-215.663254,0.00019616,2]
[373496374,1753021877658,-480.0,0.00019616,2]
[373496375,1753021877667,-1616.64,0.00019616,2]
[373496376,1753021877676,-480.0,0.00019616,2]
[373496377,1753021877686,-558.15,0.00019616,2]
[373496378,1753021877696,-8237.11,0.00019616,2]
[373496379,1753021877705,-2873.85,0.00019616,2]
[373496380,1753021877715,-606.9,0.00019616,2]
[373496381,1753021877724,-480.0,0.00019616,2]
[373496382,1753021877734,-480.0,0.00019616,2]
[373496383,1753021877743,-1538.82,0.00019616,2]
[373496384,1753021877755,-480.0,0.00019616,2]
[373496385,1753021877764,-2442.01,0.00019616,2]
[373496386,1753021877773,-1862.26,0.00019616,2]
[373496387,1753021877783,-480.0,0.00019616,2]
[373496388,1753021877793,-683.82,0.00019616,2]
[373496389,1753021877803,-799.38,0.00019616,2]
[373496390,1753021877812,-1300.86,0.00019616,2]
[373496391,1753021877822,-480.0,0.00019616,2]
[373496392,1753021877831,-480.0,0.00019616,2]
[373496393,1753021877840,-503.61,0.00019616,2]
[373496394,1753021877850,-597.75,0.00019616,2]
[373496395,1753021877860,-2561.78,0.00019616,2]
[373496396,1753021877870,-480.0,0.00019616,2]
[373496397,1753021877879,-1256.19,0.00019616,2]
[373496398,1753021877888,-1569.99,0.00019616,2]
[373496399,1753021877897,-480.0,0.00019616,2]
[373496400,1753021877907,-1923.4,0.00019616,2]
[373496401,1753021877917,-480.0,0.00019616,2]
[373496402,1753021877926,-720.64,0.00019616,2]
[373496403,1753021877936,-480.0,0.00019616,2]
[373496404,1753021877945,-480.0,0.00019616,2]
[373496405,1753021877954,-480.0,0.00019616,2]
[373496406,1753021877964,-677.46,0.00019616,2]
[373496407,1753021877973,-3131.19,0.00019616,2]
[373496408,1753021877983,-560.22,0.00019616,2]
[373496409,1753021877992,-1508.91,0.00019616,2]
[373496410,1753021878003,-1708.57,0.00019616,2]
[373496411,1753021878013,-312.96796519,0.00019616,2]
[373496412,1753021878023,-480.0,0.00019616,2]
[373496413,1753021878033,-480.0,0.00019616,2]
[373496414,1753021878043,-480.0,0.00019616,2]
[373496415,1753021878054,-897.48,0.00019616,2]
[373496416,1753021878065,-480.0,0.00019616,2]
[373496417,1753021878075,-480.0,0.00019616,2]
[373496418,1753021878085,-480.0,0.00019616,2]
[373496419,1753021878095,-693.82,0.00019616,2]
[373496420,1753021878105,-480.0,0.00019616,2]
[373496421,1753021878115,-480.0,0.00019616,2]
[373496422,1753021878124,-2520.51,0.00019616,2]
[373496423,1753021878134,-480.0,0.00019616,2]
[373496424,1753021878144,-480.0,0.00019616,2]
[373496425,1753021878153,-1465.79,0.00019616,2]
[373496426,1753021878163,-480.0,0.00019616,2]
[373496427,1753021878173,-1989.42,0.00019616,2]
[373496428,1753021878182,-480.0,0.00019616,2]
[373496429,1753021878192,-480.0,0.00019616,2]
[373496430,1753021878201,-586.51,0.00019616,2]
[373496431,1753021878210,-711.99,0.00019616,2]
[373496432,1753021878220,-42860.78,0.00019616,2]
[373496433,1753021878230,-480.0,0.00019616,2]
[373496434,1753021878240,-1420.04,0.00019616,2]
[373496435,1753021878250,-1600.36,0.00019616,2]
[373496436,1753021878260,-1284.82,0.00019616,2]
[373496437,1753021878270,-480.0,0.00019616,2]
[373496438,1753021878280,-480.0,0.00019616,2]
[373496439,1753021878290,-5849.52,0.00019616,2]
[373496440,1753021878299,-480.0,0.00019616,2]
[373496441,1753021878309,-1977.16,0.00019616,2]
[373496442,1753021878318,-1176.84,0.00019616,2]
[373496443,1753021878328,-480.0,0.00019616,2]
[373496444,1753021878339,-1133.97,0.00019616,2]
[373496445,1753021878348,-480.0,0.00019616,2]
[373496446,1753021878358,-480.0,0.00019616,2]
[373496447,1753021878368,-1065.25,0.00019616,2]
[373496448,1753021878378,-480.0,0.00019616,2]
[373496449,1753021878387,-480.0,0.00019616,2]
[373496450,1753021878398,-6236.13,0.00019616,2]
[373496451,1753021878408,-3179.49,0.00019616,2]
[373496452,1753021878417,-861.28,0.00019616,2]
[373496453,1753021878427,-1386.17,0.00019616,2]
[373496454,1753021878438,-480.0,0.00019616,2]
[373496455,1753021878448,-351.31757722,0.00019616,2]
[373496456,1753021878457,-480.0,0.00019616,2]
[373496457,1753021878466,-951.34,0.00019616,2]
[373496458,1753021878476,-480.0,0.00019616,2]
[373496459,1753021878486,-480.0,0.00019616,2]
[373496460,1753021878495,-1420.25,0.00019616,2]
[373496461,1753021878504,-480.0,0.00019616,2]
[373496462,1753021878514,-151.0,0.00019616,2]
[373496463,1753021878524,-1068.91,0.00019616,2]
[373496464,1753021878533,-868.67,0.00019616,2]
[373496465,1753021878543,-2284.55,0.00019616,2]
[373496466,1753021878552,-1044.36,0.00019616,2]
[373496467,1753021878561,-480.0,0.00019616,2]
[373496468,1753021878570,-1079.42,0.00019616,2]
[373496469,1753021878580,-480.0,0.00019616,2]
[373496470,1753021878589,-3020.27,0.00019616,2]
[373496471,1753021878599,-307.17,0.00019616,2]
[373496472,1753021878609,-480.0,0.00019616,2]
[373496473,1753021878618,-480.0,0.00019616,2]
[373496474,1753021878628,-536.69,0.00019616,2]
[373496475,1753021878638,-878.99,0.00019616,2]
[373496476,1753021878648,-2288.61,0.00019616,2]
[373496477,1753021878658,-926.32,0.00019616,2]
[373496478,1753021878668,-539.76,0.00019616,2]
[373496479,1753021878677,-701.99,0.00019616,2]
[373496480,1753021878687,-884.52,0.00019616,2]
[373496481,1753021878697,-229.57468754,0.00019616,2]
[373496482,1753021878706,-480.0,0.00019616,2]
[373496483,1753021878715,-2500.38,0.00019616,2]
[373496484,1753021878725,-1046.54,0.00019616,2]
[373496485,1753021878735,-480.0,0.00019616,2]
[373496486,1753021878745,-480.0,0.00019616,2]
[373496487,1753021878757,-1332.74,0.00019616,2]
[373496488,1753021878767,-480.0,0.00019616,2]
[373496489,1753021878777,-1817.63,0.00019616,2]
[373496490,1753021878787,-480.0,0.00019616,2]
[373496491,1753021878796,-480.0,0.00019616,2]
[373496492,1753021878806,-4906.54,0.00019616,2]
[373496493,1753021878815,-480.0,0.00019616,2]
[373496494,1753021878825,-480.0,0.00019616,2]
[373496495,1753021878834,-164.761353,0.00019616,2]
[373496496,1753021878844,-2269.17,0.00019616,2]
[373496497,1753021878853,-395.95,0.00019616,2]
[373496498,1753021878862,-480.0,0.00019616,2]
[373496499,1753021878872,-164.761353,0.00019616,2]
[373496500,1753021878881,-480.0,0.00019616,2]
[373496501,1753021878890,-480.0,0.00019616,2]
[373496502,1753021878899,-780.33,0.00019616,2]
[373496503,1753021878909,-480.0,0.00019616,2]
[373496504,1753021878918,-559.93,0.00019616,2]
[373496505,1753021878927,-2405.56,0.00019616,2]
[373496506,1753021878937,-655.91,0.00019616,2]
[373496507,1753021878947,-1147.35839113,0.00019616,2]
[373496508,1753021878964,-751.14160887,0.00019616,2]
[373496509,1753021878974,-2115.29399093,0.00019616,2]
[373496510,1753021878986,-1708.74600907,0.00019616,2]
[373496511,1753021878996,-480.0,0.00019616,2]
[373496512,1753021879008,-480.0,0.00019616,2]
[373496513,1753021879018,-6079.07,0.00019616,2]
[373496514,1753021879028,-529.55,0.00019616,2]
[373496515,1753021879038,-480.0,0.00019616,2]
[373496516,1753021879047,-480.0,0.00019616,2]
[373496517,1753021879060,-480.0,0.00019616,2]
[373496518,1753021879070,-480.0,0.00019616,2]
[373496519,1753021879080,-480.0,0.00019616,2]
[373496520,1753021879090,-196.33399093,0.00019616,2]
[373496521,1753021879109,-283.66600907,0.00019616,2]
[373496522,1753021879118,-532.45,0.00019616,2]
[373496523,1753021879128,-270.06,0.00019616,2]
[373496524,1753021879140,-480.0,0.00019616,2]
[373496525,1753021879151,-282.88,0.00019616,2]
[373496526,1753021879160,-480.0,0.00019616,2]
[373496527,1753021879170,-480.0,0.00019616,2]
[373496528,1753021879179,-172.59,0.00019616,2]
[373496529,1753021879189,-480.0,0.00019616,2]
[373496530,1753021879199,-168.0,0.00019627,2]
[373496531,1753021879209,-859.73,0.0001965,2]
[373496532,1753021879218,-500.0,0.00019673,2]
[373496533,1753021879228,-2139.26752562,0.00019674,2]
[373496534,1753021879238,-890.0,0.00019689,2]
[373496535,1753021879248,-150.0,0.00019697,2]
[373496536,1753021879259,-500.0,0.00019721,2]
[373496537,1753021879269,-1003.36026119,0.00019721,2]
[373496538,1753021879279,-151.0,0.00019721,2]
[373496539,1753021879289,-2247.41177496,0.00019725,2]
[373496545,1753021949853,1002.0,0.00030136,120]
[373496590,1753022103215,168.2,0.00030137,120]
[373496591,1753022103308,1347.7,0.00030137,120]
[373496592,1753022104771,480.0,0.00030136,120]
[373496604,1753022228974,480.0,0.00030136,120]
[373496605,1753022256445,480.0,0.00030136,120]
[373496606,1753022279416,480.0,0.00030136,120]
[373496607,1753022287478,9981.29999999,0.00030137,120]
[373496608,1753022298457,480.0,0.00030136,120]
[373496609,1753022320571,362.8,0.00030136,120]
[373496612,1753022383075,293.96,0.0002473,120]
[373496613,1753022383272,293.96,0.00026978,120]
[373496614,1753022428255,280.44,0.0001439,2]
[373496618,1753022546616,155.44,0.00013699,2]
[373496621,1753022677949,812.93904923,0.00030136,120]
[373496624,1753022741121,-312.0,0.000175,2]
[373496625,1753022741143,-29.92357714,0.00017532,2]
[373496626,1753022778601,333.0,0.00030136,120]
[373496644,1753022825081,-120.07642286,0.00017532,2]
[373496645,1753022825109,-198.81178629,0.00017643,2]
[373496646,1753022825131,-123.66757071,0.0001774,2]
[373496653,1753022953072,-150.0,0.0001774,2]
[373496654,1753022953096,-320.4,0.00017794,2]
[373496655,1753022956111,-23579.6,0.00017794,2]
[373496656,1753022956132,-2989.57,0.00017806,2]
[373496657,1753022956154,-887.65096108,0.0001782,2]
[373496670,1753023034107,-165.95,0.0001781,2]
[373496671,1753023034117,-250.0,0.00017815,2]
[373496672,1753023034127,-1000.0,0.00017815,2]
[373496673,1753023034136,-112.34903892,0.0001782,2]
[373496674,1753023034146,-200.0,0.0001784,2]
[373496675,1753023034155,-1000.0,0.0001788,2]
[373496676,1753023034165,-263.31,0.00017943,2]
[373496677,1753023034175,-293.96,0.00017985,2]
[373496678,1753023034184,-666.0,0.00018093,2]
[373496679,1753023034194,-300.0,0.0001824,2]
[373496680,1753023034204,-1200.0,0.0001824,2]
[373496681,1753023034213,-1965.94023306,0.00018241,2]
[373496682,1753023034225,-256.35980784,0.00018241,2]
[373496683,1753023034237,-363.68,0.00018241,2]
[373496684,1753023034248,-593.690625,0.00018241,2]
[373496685,1753023034260,-3139.73611429,0.00018241,2]
[373496686,1753023034272,-399.50399,0.00018241,2]
[373496687,1753023034284,-504.26535401,0.00018241,2]
[373496688,1753023034296,-2149.5638758,0.00018241,2]
[373496689,1753023034306,-736.71,0.00018277,2]
[373496690,1753023034316,-10008.05,0.00018315,2]
[373496691,1753023034326,-346.63,0.00018329,2]
[373496692,1753023034336,-168.38,0.00018348,2]
[373496693,1753023034349,-178.11,0.00018405,2]
[373496694,1753023034359,-185.33,0.00018559,2]
[373496695,1753023034369,-513.0,0.0001858,2]
[373496696,1753023034379,-231.28369723,0.00018629,2]
[373496697,1753023034391,-5096.14886866,0.00018629,2]
[373496698,1753023034403,-420.54461945,0.00018629,2]
[373496699,1753023034414,-1626.16251189,0.00018629,2]
[373496700,1753023034425,-3127.39,0.0001863,2]
[373496701,1753023034435,-185.33,0.00018652,2]
[373496702,1753023034445,-150.0,0.00018699,2]
[373496703,1753023034455,-200.0,0.000187,6]
[373496704,1753023034464,-152.47122976,0.000187,2]
[373496705,1753023034473,-206.14504837,0.000187,2]
[373496706,1753023034483,-112.51423709,0.000187,2]
[373496707,1753023034494,-38.48576291,0.000187,2]
[373496708,1753023034503,-151.0,0.000187,2]
[373496709,1753023034513,-151.0,0.000187,2]
[373496710,1753023034523,-160.5921384,0.000187,2]
[373496711,1753023034534,-151.0,0.000187,2]
[373496713,1753023034544,-55.76679865,0.000187,2]
[373496715,1753023034567,-165.66442362,0.000187,2]
[373496717,1753023034576,-153.88153558,0.000187,2]
[373496719,1753023034586,-2831.50482559,0.00018702,2]
[373496721,1753023034595,-185.33,0.00018744,2]
[373496723,1753023034605,-422.72,0.00018768,2]
[373496725,1753023034614,-305.0,0.0001878,2]
[373496727,1753023034624,-500.0,0.000188,6]
[373496729,1753023034634,-1335.88,0.000189,2]
[373496730,1753023034643,-700.0,0.000189,6]
[373496731,1753023034652,-1335.88,0.00019,2]
[373496733,1753023034661,-1335.88,0.00019,2]
[373496735,1753023034671,-1000.0,0.00019,2]
[373496737,1753023034680,-346.63,0.00019016,2]
[373496739,1753023034689,-464.60208167,0.00019078,2]
[373496742,1753023034701,-404.35360807,0.00019078,2]
[373496744,1753023034712,-243.74441329,0.00019078,2]
[373496746,1753023034722,-184.16240801,0.00019078,2]
[373496748,1753023034732,-163.90496011,0.00019078,2]
[373496750,1753023034741,-591.56872859,0.00019078,2]
[373496752,1753023034750,-814.70576395,0.00019078,2]
[373496754,1753023034760,-1000.0,0.00019078,2]
[373496756,1753023034774,-4083.79193539,0.00019078,2]
[373496759,1753023034787,-443.42502381,0.00019078,2]
[373496763,1753023034813,-472.7830408,0.00019078,2]
[373496765,1753023034822,-1335.88,0.000191,2]
[373496767,1753023034831,-1000.0,0.000191,2]
[373496769,1753023034841,-1000.0,0.000191,2]
[373496771,1753023034850,-1000.0,0.000191,2]
[373496773,1753023034861,-1543.0,0.000191,2]
[373496775,1753023034870,-1000.0,0.000191,3]
[373496777,1753023034879,-1000.0,0.000191,3]
[373496779,1753023034889,-1000.0,0.000191,3]
[373496781,1753023034898,-1000.0,0.000191,3]
[373496783,1753023034908,-1112.70010299,0.00019151,2]
[373496785,1753023034918,-326.83,0.00019168,2]
[373496787,1753023034927,-394.44542332,0.00019173,2]
[373496789,1753023034937,-500.0,0.00019173,2]
[373496791,1753023034947,-500.0,0.00019173,2]
[373496793,1753023034956,-500.0,0.00019173,2]
[373496795,1753023034966,-117.91175007,0.00019173,2]
[373496797,1753023034978,-382.08824993,0.00019173,2]
[373496799,1753023034987,-500.0,0.00019173,2]
[373496801,1753023034996,-1693.05557692,0.00019173,2]
[373496803,1753023035008,-1517.99192745,0.00019173,2]
[373496805,1753023035020,-1191.1776,0.00019173,2]
[373496808,1753023035041,-2214.80966991,0.00019173,2]
[373496810,1753023035062,-1790.66391468,0.00019177,2]
[373496812,1753023035074,-5616.47775732,0.00019177,2]
[373496814,1753023035084,-628.48206232,0.00019177,2]
[373496816,1753023035094,-480.0,0.00019178,2]
[373496818,1753023035104,-480.0,0.00019178,2]
[373496820,1753023035114,-480.0,0.00019178,2]
[373496822,1753023035124,-480.0,0.00019178,2]
[373496823,1753023035134,-480.0,0.00019178,2]
[373496825,1753023035143,-480.0,0.00019178,2]
[373496827,1753023035153,-480.0,0.00019178,2]
[373496830,1753023035166,-480.0,0.00019178,2]
[373496832,1753023035175,-460.0,0.00019178,2]
[373496833,1753023035185,-480.0,0.00019178,2]
[373496836,1753023035194,-440.0,0.00019178,2]
[373496838,1753023035204,-245.2201209,0.00019178,2]
[373496840,1753023035214,-480.0,0.00019178,2]
[373496842,1753023035223,-132.90685303,0.00019178,2]
[373496844,1753023035237,-377.09314697,0.00019178,2]
[373496846,1753023035247,-460.0,0.00019178,2]
[373496848,1753023035258,-480.0,0.00019178,2]
[373496850,1753023035269,-480.0,0.00019178,2]
[373496852,1753023035285,-460.0,0.00019178,2]
[373496854,1753023035295,-480.0,0.00019178,2]
[373496856,1753023035306,-500.0,0.00019178,2]
[373496858,1753023035316,-500.0,0.00019178,2]
[373496860,1753023035326,-500.0,0.00019178,2]
[373496862,1753023035336,-500.0,0.00019178,2]
[373496864,1753023035350,-500.0,0.00019178,2]
[373496866,1753023035360,-500.0,0.00019178,2]
[373496868,1753023035370,-500.0,0.00019178,2]
[373496870,1753023035381,-595.49140856,0.00019178,2]
[373496872,1753023035391,-500.0,0.00019178,2]
[373496874,1753023035400,-500.0,0.00019178,2]
[373496876,1753023035410,-500.0,0.00019178,2]
[373496878,1753023035422,-500.0,0.00019178,2]
[373496880,1753023035432,-500.0,0.00019178,2]
[373496882,1753023035441,-500.0,0.00019178,2]
[373496884,1753023035452,-273.05281856,0.00019178,2]
[373496886,1753023035466,-206.94718144,0.00019178,2]
[373496888,1753023035475,-372.4163505,0.00019178,2]
[373496891,1753023035487,-107.5836495,0.00019178,2]
[373496893,1753023035496,-480.0,0.00019178,2]
[373496895,1753023035505,-257.60854366,0.00019178,2]
[373496898,1753023035528,-202.39145634,0.00019178,2]
[373496900,1753023035538,-480.0,0.00019178,2]
[373496902,1753023035548,-480.0,0.00019178,2]
[373496904,1753023035558,-202.48462398,0.00019178,2]
[373496906,1753023035567,-480.0,0.00019178,2]
[373496908,1753023035577,-193.61035427,0.00019178,2]
[373496910,1753023035586,-460.0,0.00019178,2]
[373496912,1753023035596,-440.0,0.00019178,2]
[373496914,1753023035606,-460.0,0.00019178,2]
[373496916,1753023035615,-480.0,0.00019178,2]
[373496918,1753023035625,-480.0,0.00019178,2]
[373496920,1753023035635,-480.0,0.00019178,2]
[373496922,1753023035644,-480.0,0.00019178,2]
[373496924,1753023035653,-480.0,0.00019178,2]
[373496926,1753023035663,-480.0,0.00019178,2]
[373496928,1753023035673,-480.0,0.00019178,2]
[373496930,1753023035682,-480.0,0.00019178,2]
[373496932,1753023035691,-480.0,0.00019178,2]
[373496934,1753023035700,-480.0,0.00019178,2]
[373496936,1753023035709,-440.0,0.00019178,2]
[373496938,1753023035718,-460.0,0.00019178,2]
[373496940,1753023035727,-480.0,0.00019178,2]
[373496942,1753023035736,-480.0,0.00019178,2]
[373496944,1753023035745,-480.0,0.00019178,2]
[373496946,1753023035755,-480.0,0.00019178,2]
[373496948,1753023035764,-480.0,0.00019178,2]
[373496950,1753023035777,-460.0,0.00019178,2]
[373496952,1753023035786,-480.0,0.00019178,2]
[373496954,1753023035795,-480.0,0.00019178,2]
[373496956,1753023035805,-480.0,0.00019178,2]
[373496958,1753023035814,-480.0,0.00019178,2]
[373496959,1753023035823,-480.0,0.00019178,2]
[373496962,1753023035833,-480.0,0.00019178,2]
[373496963,1753023035843,-480.0,0.00019178,2]
[373496966,1753023035853,-460.0,0.00019178,2]
[373496967,1753023035862,-490.0496917,0.00019178,2]
[373496970,1753023035871,-398.99067121,0.00019178,2]
[373496972,1753023035887,-81.00932879,0.00019178,2]
[373496974,1753023035896,-480.0,0.00019178,2]
[373496976,1753023035906,-480.0,0.00019178,2]
[373496978,1753023035916,-168.1204271,0.00019178,2]
[373496983,1753023035953,-311.8795729,0.00019178,2]
[373496985,1753023035963,-480.0,0.00019178,2]
[373496987,1753023035972,-460.0,0.00019178,2]
[373496989,1753023035981,-388.89154025,0.00019178,2]
[373496991,1753023035991,-480.0,0.00019178,2]
[373496993,1753023036000,-480.0,0.00019178,2]
[373496995,1753023036009,-480.0,0.00019178,2]
[373496997,1753023036019,-456.81069685,0.00019178,2]
[373496999,1753023036033,-23.18930315,0.00019178,2]
[373497001,1753023036043,-480.0,0.00019178,2]
[373497003,1753023036052,-480.0,0.00019178,2]
[373497005,1753023036061,-480.0,0.00019178,2]
[373497007,1753023036070,-480.0,0.00019178,2]
[373497009,1753023036080,-55.24958406,0.00019178,2]
[373497012,1753023036091,-424.75041594,0.00019178,2]
[373497013,1753023036100,-480.0,0.00019178,2]
[373497015,1753023036109,-460.0,0.00019178,2]
[373497017,1753023036118,-460.0,0.00019178,2]
[373497019,1753023036127,-480.0,0.00019178,2]
[373497021,1753023036137,-480.0,0.00019178,2]
[373497023,1753023036146,-460.0,0.00019178,2]
[373497025,1753023036156,-463.44329482,0.00019178,2]
[373497027,1753023036165,-480.0,0.00019178,2]
[373497029,1753023036174,-480.0,0.00019178,2]
[373497031,1753023036183,-460.0,0.00019178,2]
[373497033,1753023036192,-461.97131506,0.00019178,2]
[373497035,1753023036201,-460.0,0.00019178,2]
[373497037,1753023036210,-460.0,0.00019178,2]
[373497039,1753023036219,-460.0,0.00019178,2]
[373497041,1753023036229,-111.73452283,0.00019178,2]
[373497044,1753023036241,-368.26547717,0.00019178,2]
[373497046,1753023036250,-480.0,0.00019178,2]
[373497048,1753023036260,-480.0,0.00019178,2]
[373497049,1753023036269,-480.0,0.00019178,2]
[373497051,1753023036284,-480.0,0.00019178,2]
[373497053,1753023036298,-480.0,0.00019178,2]
[373497055,1753023036308,-460.0,0.00019178,2]
[373497057,1753023036317,-460.0,0.00019178,2]
[373497059,1753023036326,-480.0,0.00019178,2]
[373497062,1753023036336,-480.0,0.00019178,2]
[373497063,1753023036349,-463.34737469,0.00019178,2]
[373497065,1753023036358,-460.0,0.00019178,2]
[373497067,1753023036367,-460.0,0.00019178,2]
[373497070,1753023036376,-480.0,0.00019178,2]
[373497071,1753023036387,-480.0,0.00019178,2]
[373497073,1753023036396,-480.0,0.00019178,2]
[373497075,1753023036406,-500.0,0.00019178,2]
[373497078,1753023036421,-500.0,0.00019178,2]
[373497081,1753023036437,-254.38835897,0.00019178,2]
[373497083,1753023036451,-480.0,0.00019178,2]
[373497085,1753023036465,-480.0,0.00019178,2]
[373497087,1753023036476,-480.0,0.00019178,2]